Cogmind - Beta 13 @@@ ROGUE MODE // 2024.04.02 @ 21:40:39 Player: tartine Result: Destroyed by Y-45 Defender with Heavy Assault Rifle Performance ------------- Evolutions (1) 500 Regions Visited (2) 400 Robots Destroyed (41) 205 Value Destroyed (845) 845 Prototype IDs (1) 20 Alien Tech Used (0) 0 Bonus (8) 8 TOTAL SCORE: 1978 Bonus ------- High Alert Combat Kills 8 Cogmind --------- Core Integrity 0/400 Matter 11/300 Energy 97/100 System Corruption 0% Temperature Cool (9) Movement Core (400) Ox7 Location -9/Materials Parts ------- > --- POWER (1) -------- (None) > --- PROPULSION (3) --- (None) > --- UTILITY (2) ------ Large Storage Unit > --- WEAPON (3) ------- Small Laser Heavy Hammer > --- INVENTORY (15) --- Heavy Armor Plating Medium Laser Grenade Launcher Mini Grenade Launcher Peak State ------------ > --- POWER ------------ Reinforced Ion Engine > --- PROPULSION ------- Aluminum Leg Aluminum Leg Improved Flight Unit > --- UTILITY ---------- Large Storage Unit ECM Suite > --- WEAPON ----------- EM Pulse Gun Light Assault Rifle Light Cannon > --- INVENTORY -------- Reinforced Ion Engine Hover Unit Hover Unit Grenade Launcher Mini Grenade Launcher Mini Grenade Launcher [Rating: 12] Favorites ----------- Power Reinforced Ion Engine Engine Reinforced Ion Engine Propulsion Hover Unit Treads Light Treads Leg Aluminum Leg Hover Unit Hover Unit Flight Unit Improved Flight Unit Utility Large Storage Unit Device ECM Suite Storage Large Storage Unit Protection Light Armor Plating Weapon Backup Laser I Energy Gun Backup Laser I Ballistic Gun Light Assault Rifle Ballistic Cannon Light Cannon Launcher Mini Grenade Launcher Impact Weapon Heavy Hammer Build | -11 -10 -9 ------- Run | Yrd Mat Mat Slots Evolved 2 | . . 2 Power . | . . . Propulsion 1 | . . 1 Utility . | . . . Weapon 1 | . . 1 Parts Attached 35 | 6 11 18 Power 4 | 1 1 2 Engine 4 | 1 1 2 Core . | . . . Reactor . | . . . Propulsion 10 | 2 3 5 Treads 3 | 2 1 . Leg 4 | . 2 2 Wheel . | . . . Hover 2 | . . 2 Flight 1 | . . 1 Utility 6 | 1 3 2 Device 1 | . 1 . Storage 3 | 1 2 . Processor . | . . . Hackware . | . . . Protection 2 | . . 2 Artifact . | . . . Weapon 15 | 2 4 9 Energy Gun 5 | 1 1 3 Energy Cannon . | . . . Ballistic Gun 3 | 1 . 2 Ballistic Cannon 2 | . 2 . Launcher 4 | . 1 3 Special Weapon . | . . . Impact Weapon 1 | . . 1 Slashing Weapon . | . . . Piercing Weapon . | . . . Special Melee Weapon . | . . . Unidentified Prototypes 1 | . . 1 Parts Lost 13 | . . 13 Power 3 | . . 3 Propulsion 4 | . . 4 Utility 2 | . . 2 Weapon 4 | . . 4 Highest Loss Streak 6 | . . 6 To Critical Strikes . | . . . Average Slot Usage (%) 84 | . 95 79 Engine 10 | . 13 9 Treads 6 | . 19 . Leg 6 | . 7 5 Hover 10 | . . 14 Device 4 | . 10 1 Storage 11 | . 14 11 Protection 5 | . . 7 Energy Gun 12 | . 2 16 Ballistic Gun 2 | . 2 2 Ballistic Cannon 4 | . 11 . Launcher 6 | . 11 4 Impact Weapon 4 | . . 5 Naked Turns . | . . . Heaviest Build 38 | 11 37 38 Greatest Support 40 | 40 40 20 Greatest Overweight (x) 11 | . 1 11 Average Overweight (x) 1 | . . 1 Largest Inventory Capacity 15 | 8 15 15 Average Capacity 14 | 6 13 15 Most Carried 8 | 5 8 8 Average Carried 5 | 2 5 6 Final Capacity 15 | 8 15 15 Final Carried 8 | 2 8 5 Class Distribution -------------------- 81% | Mutant 15% | Gunner Dominant Class ---------------- Mutant | -10/Materials Mutant | -9/Materials Resources | -11 -10 -9 ----------- Run | Yrd Mat Mat Matter Collected 664 | 245 199 220 Remotely . | . . . Salvage Created 794 | . 345 449 Parts 73 | . 37 36 Haulers Intercepted 3 | . 2 1 Recyclers Shooed 1 | . . 1 Parts Field Recycled . | . . . Retrieved Matter . | . . . Parts Self-Destructed . | . . . Prevented . | . . . Kills | -11 -10 -9 ------- Run | Yrd Mat Mat Combat Hostiles Destroyed 29 | . 14 15 Melee 1 | . . 1 Guns 9 | . 1 8 Cannons 3 | . 2 1 AOE 16 | . 11 5 Classes Destroyed 9 | . 7 2 Builder 2 | . 1 1 Tunneler 1 | . 1 . Hauler 3 | . 2 1 Recycler 1 | . . 1 Operator 1 | . 1 . Watcher 4 | . 3 1 Swarmer 13 | . 6 7 Grunt 14 | . 8 6 Sentry 2 | . . 2 Best Kill Streak 7 | . 4 7 Combat Bots Only 4 | . 3 4 Max Kills in Single Turn 3 | . 3 2 Gunslinging . | . . . Exploded 2 | . 2 2 Melee 1 | . . 1 Uniques/NPCs Destroyed . | . . . Combat | -11 -10 -9 -------- Run | Yrd Mat Mat Hostile Shots Fired 229 | . 48 181 Missed 81 | . 18 63 Damage Taken 2041 | . 498 1543 Core 550 | . 141 409 Absorbed by Shields . | . . . Regen/Repaired (Parts) 199 | . 74 125 Core Remaining (%) 71 | 100 43 . Volleys Fired 109 | . 53 56 Largest 3 | . 2 3 Hottest 110 | . 65 110 Shots Fired 183 | . 79 104 Gun 122 | . 34 88 Cannon 30 | . 24 6 Launcher 31 | . 21 10 Special . | . . . Kinetic 63 | . 37 26 Thermal 54 | . . 54 Explosive 31 | . 21 10 Electromagnetic 35 | . 21 14 Robot Hit Streak 18 | . 4 18 Robot Miss Streak 5 | . 5 3 Penetration Max . | . . . Secondary Targets 2 | . . 2 Max Gunslinging Chain 1 | . . 1 Shots Hit Robots 100 | . 32 68 Core Hits 58 | . 28 30 Critical Kills . | . . . Critical Parts Destroyed . | . . . Critical Strikes 4 | . 1 3 Burn 3 | . . 3 Blast 1 | . 1 . Melee Attacks 5 | . . 5 Impact 5 | . . 5 Slashing . | . . . Piercing . | . . . Sneak Attacks . | . . . Combat Hostiles . | . . . Follow-up Attacks . | . . . Damage Inflicted 2831 | . 1487 1344 Guns 869 | . 228 641 Cannons 186 | . 134 52 Explosions 1653 | . 1125 528 Melee 122 | . . 122 Ramming 1 | . . 1 Kinetic 348 | . 187 161 Thermal 471 | . 39 432 Explosive 1614 | . 1086 528 Electromagnetic 275 | . 175 100 Impact 122 | . . 122 Slashing . | . . . Piercing . | . . . Highest Corruption . | . . . Average Corruption . | . . . Corruption Purged . | . . . Corruption Blocked . | . . . Overload Shots . | . . . Overflow Damage 72 | . 44 28 Projectiles 3 | . 3 . Explosions 43 | . 41 2 Melee 26 | . . 26 Knockbacks 1 | . . 1 Impact 1 | . . 1 Kinetic . | . . . Secondary . | . . . Self-Inflicted Damage 308 | . 202 106 Shots 10 | . 7 3 Rammed 1 | . . 1 Targets Rammed 1 | . . 1 Kicked . | . . . Crushed . | . . . Highest Temperature 488 | . 68 488 Average Temperature 88 | . 23 155 Received Heat Transfer 579 | . 90 489 Effects 6 | . . 6 Shutdowns 2 | . . 2 Interference 1 | . . 1 Matter Decay 1 | . . 1 Short Circuit 2 | . . 2 Siege Activations . | . . . Robots Corrupted 1 | . 1 . Combat Hostiles . | . . . Parts Fried . | . . . Impact Corruptions 1 | . . 1 Robots Melted . | . . . Combat Hostiles . | . . . Parts Melted 2 | . . 2 Heat Transferred 1557 | . 50 1507 Parts Sabotaged . | . . . Parts Stolen . | . . . Parts Stripped . | . . . Power Chain Reactions 1 | . 1 . Alert | -11 -10 -9 ------- Run | Yrd Mat Mat Peak Influence 430 | . 430 352 Initial 122 | . . 122 Average 121 | . 214 83 Maximum Alert Level 2 | . 2 1 Low Security (%) 74 | 100 44 86 Level 1 21 | . 39 13 Level 2 4 | . 15 . Level 3 . | . . . Level 4 . | . . . Level 5 . | . . . High Security . | . . . Max Security . | . . . Squads Dispatched 9 | . 4 5 Investigation 4 | . 2 2 Extermination . | . . . Reinforcement 5 | . 2 3 Assault . | . . . Garrison . | . . . Intercept . | . . . Searches Triggered . | . . . Construction Impeded . | . . . Haulers Reinforced . | . . . Active Scanning Responses . | . . . Cargo Convoy Interrupts . | . . . Stealth | -11 -10 -9 --------- Run | Yrd Mat Mat Distress Signals 2 | . . 2 Communications Jammed . | . . . Distress Signals . | . . . Times Spotted 43 | . 19 24 Peak Tracking Total 6 | . 3 6 Tactical Retreats 4 | . 3 1 Traps | -11 -10 -9 ------- Run | Yrd Mat Mat Traps Triggered 2 | . 2 . Indirectly . | . . . Trap Hack Attempts . | . . . Triggered . | . . . Disarmed . | . . . Reprogrammed . | . . . Reused . | . . . Traps Extracted . | . . . Installed . | . . . Triggered . | . . . Machines | -11 -10 -9 ---------- Run | Yrd Mat Mat Machines Disabled 4 | . 3 1 Max in Single Turn 1 | . 1 1 Machines Repaired . | . . . Machines Dismantled . | . . . Machines Sabotaged . | . . . Overloaded Fab Kills . | . . . Hacking | -11 -10 -9 --------- Run | Yrd Mat Mat Machines Accessed 7 | . 3 4 Terminals 5 | . 2 3 Fabricators . | . . . Repair Stations 2 | . 1 1 Recycling Units . | . . . Scanalyzers . | . . . Garrison Access . | . . . Total Hacks 23 | . 7 16 Successful 17 | . 4 13 Failed 6 | . 3 3 Catastrophic . | . . . Database Lockouts . | . . . Manual . | . . . Terminals 13 | . 3 10 Fabricators . | . . . Repair Stations 10 | . 4 6 Recycling Units . | . . . Scanalyzers . | . . . Garrison Access . | . . . Terminal Hacks 10 | . 2 8 Record 8 | . 1 7 Zone Layout 2 | . 1 1 Fabricator Hacks . | . . . Repair Station Hacks 7 | . 2 5 Scan Component 3 | . 1 2 Repair 3 | . 1 2 Refit 1 | . . 1 Recycling Unit Hacks . | . . . Scanalyzer . | . . . Garrison Access Hacks . | . . . Unauthorized Hacks . | . . . Terminals . | . . . Fabricators . | . . . Repair Stations . | . . . Recycling Units . | . . . Scanalyzers . | . . . Garrison Access . | . . . Data Cores Recovered . | . . . Used . | . . . Hacking Detections 6 | . 2 4 Full Trace Events 3 | . 1 2 Feedback Events . | . . . Feedback Blocked . | . . . Robot Schematics Acquired . | . . . Robots Built . | . . . Authchips . | . . . Time . | . . . Total Robot Build Rating . | . . . Part Schematics Acquired . | . . . Parts Built . | . . . Authchips . | . . . Time . | . . . Total Part Build Rating . | . . . Parts Repaired 3 | . 1 2 Time 84 | . 26 58 Parts Recycled . | . . . Recycled Matter . | . . . Retrieved Matter . | . . . Retrieved Components . | . . . Parts Scanalyzed . | . . . Part Schematics Acquired . | . . . Parts Damaged . | . . . Bothacking | -11 -10 -9 ------------ Run | Yrd Mat Mat Used RIF Installer . | . . . Robots Hacked . | . . . Non-combat . | . . . Combat . | . . . Robot Hacks Applied . | . . . Relay Couplers Released . | . . . Fabnet Peak Effective % . | . . . Robots Rewired . | . . . Allies Hacked . | . . . Hacks Repelled . | . . . Allies | -11 -10 -9 -------- Run | Yrd Mat Mat Total Allies . | . . . Largest Group . | . . . Highest-Rated Group . | . . . Highest-Rated Ally . | . . . Total Orders . | . . . Ally Attacks . | . . . Total Damage . | . . . Kills . | . . . Allies Corrupted . | . . . Allies Melted . | . . . Intel | -11 -10 -9 ------- Run | Yrd Mat Mat Robot Analysis Total . | . . . Derelict Logs Recovered . | . . . Drone Launches . | . . . Drone Recoveries . | . . . Exploration | -11 -10 -9 ------------- Run | Yrd Mat Mat Turns Passed 3112 | 75 950 2087 Spaces Moved 1081 | 40 462 579 Core 43 | 13 . 30 Treads 365 | 27 338 . Legs 326 | . 124 202 Wheels . | . . . Hover 347 | . . 347 Flight . | . . . Fastest Speed 50 | 50 160 116 Average Speed 179 | 124 170 191 Slowest Speed 600 | 160 240 600 Overloaded Moves . | . . . Propulsion Burnouts . | . . . Robots Hopped . | . . . Cave-ins Triggered . | . . . Exploration Rate (%) 38 | 4 71 40 Regions Visited 2 Branch Regions . Pre-discovered Areas . | . . . Known Exits Taken . | . . . Unknown Exits Taken 2 | 1 1 . Scrap Searched . | . . . Spaces Dug . | . . . Terrain Destroyed 294 | . 210 84 Melee . | . . . Projectile . | . . . AOE 294 | . 210 84 Terrain Rammed . | . . . Walls Destroyed . | . . . Machines Disabled . | . . . Actions | -11 -10 -9 --------- Run | Yrd Mat Mat Total 2079 | 65 551 1463 Wait 797 | 13 4 780 Move 1079 | 39 461 579 Hop . | . . . Pick Up 36 | 7 16 13 Fast Attach 1 | 1 . . Attach 30 | 5 8 17 Detach 3 | . . 3 Swap 4 | . 3 1 Drop 14 | . 6 8 Fire 109 | . 53 56 Melee 5 | . . 5 Ram 1 | . . 1 Kick . | . . . Crush . | . . . Escape Stasis . | . . . Rewire . | . . . Trap . | . . . Miscellaneous . | . . . Route ------- -11/Scrapyard -10/Materials (discovered 4 exits: *Mat x2 / [*Min x2]) -9/Materials (discovered 1 exit: [*Min]) History --------- Turn | Location | Event 18 | -11/Scrapyard | Discovered new exit (range 15) 76 | -11/Scrapyard | Entered Materials 313 | -10/Materials | Build established: Mutant 313 | -10/Materials | Discovered new exit (range 9) 461 | -10/Materials | Discovered new exit (range 14) 629 | -10/Materials | Discovered new exit (range 3) 670 | -10/Materials | Core integrity fell below 50% 737 | -10/Materials | Repaired Lgt. Treads 887 | -10/Materials | Discovered new exit (range 9) 1026 | -10/Materials | Entered another Materials area 1026 | -9/Materials | Evolved 2 slots: Propulsion x1, Weapon x1 1069 | -9/Materials | Discovered new exit (range 16) 1340 | -9/Materials | Build established: Gunner 1430 | -9/Materials | Lost 5 parts (1p1n1u2w) 1657 | -9/Materials | Repaired Lgt. Armor Plating 1691 | -9/Materials | Repaired Beam Rifle 1831 | -9/Materials | Build established: Mutant 3037 | -9/Materials | Core integrity fell below 50% 3092 | -9/Materials | Lost 6 parts (1p2n1u2w) 3098 | -9/Materials | Core integrity fell below 20% 3113 | -9/Materials | Destroyed by Y-45 Defender with Heavy Assault Rifle Last Messages --------------- 03054_ W-16 Scout knocked back. 03054_ U-05 Engineer builds a Wall. 03055_ Critical hit (Burn: +37). 03056_ Scanalyzer disabled. 03056_ R-06 Scavenger destroyed. 03058_ U-05 Engineer builds a Wall. 03060_ Y-45 Defender heat damages Lgt. Armor Plating. 03061_ Mni. Grenade Launcher destroyed. 03062_ U-05 Engineer builds a Door. 03067_ The unstable cave ceiling collapses. 03067_ U-05 Engineer lays Concrete. 03070_ U-05 Engineer builds a Wall. 03074_ U-05 Engineer lays Concrete. 03081_ K-01 Serf cleans the Terminal. 03089_ U-05 Engineer lays Concrete. 03091_ K-01 Serf cleans the Terminal. 03091_ U-05 Engineer lays Concrete. 03094_ K-01 Serf collects debris. 03103_ Critical hit (Burn: +37). Map ----- +----------------------------------------------------+ | ????????????? +????????????????????????????????? | | ????????????? #????????????????????????????????? | | ????????????# #????????????????????????????????? | | ????????????# #????????????????????????????????? | | ????????????# #????????????????????????????????? | | ????????????# #????????????????????????????????? | | ????????????# #????????????????????????????????? | | ?????######## #????????????????????????????????? | | ?????# """ # #????????????????????????????????? | | ?????# """ # #????????????????????????????????? | | ?????# """ # ########?????????????????????????? | | ?????# # #!!!!!!#?????????????????????????? | | ?????# # !! ! !#?????????????????????????? | | ??????? # #####??????????####???????? | | #########+### # ######+# #???????? | | % * ??????? | | = % [ ! ??????? | | = =%* =%!=%[ ??????? | | #######+###### ##+######+ * #????????? | | ##??? ?? # #???????? ##????????? | | #? ?"# ""S??#""Y #???????????????????? | | ## Y"???"????#"T #???????????????????? | | ## """ ""#???????#"" #???????????????????? | | # """ #???????# #???????????????????? | | ## """ #???????# #???????????????????? | | ## #???????###@####???????????????????? | | ###########+###?????????# #??????????????????????? | | ????????????????????????# #??????????????????????? | | ????????????????????????# #??????????????????????? | | ????????????????????????# #??????????????????????? | | ????????????????????????# #??????????????????????? | | ????????????????????????# #??????????????????????? | | ????????????????????????# #??????????????????????? | | ???????????????????????? ??????????????????????? | | ???????????????????????? ??????????????????????? | | ???????????????????????? ??????????????????????? | | ????????????????????????+##??????????????????????? | | ?????????????????????????????????????????????????? | | #???????????????????????????????????????????? | | #???????????????????????????????????????????? | | +???????????????????????????????????????????? | | "" #???????????????????????????????????????????? | | "" ??????????????????????????????????????????????? | | ""???????????????????????????????????????????????? | | ???????????????????????????????????????????????? | | ??????????????????????????????????????????????? | | ?????????????????????????????????????????????? | | ? ??????????????????????????????????????????????? | | ?????????????????????????????????????????????????? | | ?????????????????????????????????????????????????? | +----------------------------------------------------+ Best States ------------- Heat Dissipation 28 Energy Generation 12 Energy Capacity 265 Matter Stores 300 Matter Capacity 300 Sight Range 16 Terrain Scan Density 10 ECM Strength 1 Armor Coverage 150 Evasion (%) 50 Recoil Reduction 2 Item Schematics ----------------- None Robot Schematics ------------------ None Fabricated ------------ Nothing Alien Tech Used ----------------- None Achievements -------------- Oops Power Corrupts Challenges ------------ None Game ------ Seed PlatingConcussivePurifier Manual? 0 Play Time 00:32:42 Cumulative 3.8 hours Start 2024.04.02 @ 21:07:47 End 2024.04.02 @ 21:40:39 Sessions 1 Manual Loads 0 Difficulty Rogue Special Mode None Game No. 4 Rogue 4 Adventurer 0 Explorer 0 Win Type - Total 0 Types 0/0/0/0/0/0/0/0/0 Lore% 4 Gallery% 7 Achievement% 8 Wizard Run 0 Options --------- Layout 1 ASCII 0 Keyboard 0 Movement Mouse Keybinds 0 Fullscreen 1 Font 24/Smallcaps Map View 50x35 Zoom Use 0% Tactical HUD 1 Map Filters NONE Filters NONE Steam 1 RUN: 73d1f4e6-816a-42ee-940a-9e7ab2775ac2